Cogmind - Beta 12 @@@ ROGUE MODE // 2023.04.02 @ 00:27:52 Player: lyrabold Result: Self-destructed Performance ------------- Evolutions (7) 3500 Regions Visited (27) 5400 Robots Destroyed (567) 2835 Value Destroyed (24505) 24505 Prototype IDs (73) 1460 Alien Tech Used (1) 200 Bonus (10782) 10782 TOTAL SCORE: 48682 Bonus ------- High Alert Combat Kills 2231 Follower Combat Kills 2567 Network Hubs Disabled 600 Destroyed Z-Imprinter 1000 Triggered Deep Caves Wall 500 Exposed GOLEM Chamber 500 Met Zhirov 300 Met Warlord at Base 500 MAIN.C Attacked Warlord 500 Built Enhanced Grunts 300 Met R17 at Cetus 500 Met R17 at Research 2000 Friendly Fire -716 Cogmind --------- Core Integrity 529/1300 Matter 290/300 Energy 93/1100 System Corruption 0% Temperature Cool (0) Movement Walking (270) Ox4 Location -3/Research Parts ------- > --- POWER (3) -------- Assembled Flux Generator > --- PROPULSION (4) --- Assembled Alloy Leg > --- UTILITY (12) ----- Huge Storage Unit Assembled Biocell Array Advanced Signal Interpreter Advanced Terrain Scan Processor Experimental Targeting Computer > --- WEAPON (2) ------- (None) > --- INVENTORY (25) --- Advanced Energy Well (0) Zionite Biocell (0) Quantum Capacitor Advanced Transmission Jammer Experimental Cloaking Device Layered Medium Armor Plating Centrium Light Armor Plating Makeshift Ablative Armor Experimental EM Disruption Field Improved Hacking Suite Advanced System Restoration Module Improved Trap Extractor (6/6 Dirty Bomb) Dimensional Node Initializer Transdimensional Reconstructor EMDS EMDS Field Lobotomy Kit (5) CR-A16's Behemoth Slayer Peak State ------------ > --- POWER ------------ Quantum Reactor Vortex Chain Reactor > --- PROPULSION ------- Advanced Heavy Siege Treads Advanced Heavy Siege Treads > --- UTILITY ---------- Assembled Nanovents Assembled Nanovents Assembled Nanovents Huge Storage Unit Assembled Biocell Array Assembled Combat Suite Experimental Targeting Computer Centrium Medium Armor Plating Assembled Alloy Armor Experimental Hacking Suite GOLEM Unit > --- WEAPON ----------- Assembled Focal Cannon Assembled Focal Cannon > --- INVENTORY -------- Advanced Energy Well Zionite Biocell Experimental Sensor Array Advanced Signal Interpreter Long-range Terrain Scanner Advanced Terrain Scan Processor Particle Accelerator Advanced Transmission Jammer Experimental Cloaking Device Centrium Medium Armor Plating Makeshift Ablative Armor Experimental EM Disruption Field Advanced Force Field Advanced System Restoration Module Improved Trap Extractor Dimensional Node Initializer Transdimensional Reconstructor Long-range Proton Cannon EMDS EMDS Thermoblaster Field Lobotomy Kit CR-A16's Behemoth Slayer [Rating: 196] Favorites ----------- Power Assembled Flux Generator Engine Cooled Ion Engine Power Core Reinforced Fission Core Reactor Assembled Flux Generator Propulsion Assembled Alloy Leg Treads Light Treads Leg Assembled Alloy Leg Wheel Armored Huge Wheel Flight Unit Cooled Nuclear Pulse Thruster Utility Huge Storage Unit Device GOLEM Unit Storage Huge Storage Unit Processor Experimental Targeting Computer Hackware Hacking Suite Protection Assembled Alloy Armor Weapon Assembled Focal Cannon Energy Gun Heavy EM Pulse Gun Energy Cannon Assembled Focal Cannon Ballistic Gun Precision Assault Rifle Ballistic Cannon Mini Assault Cannon Launcher Mini Grenade Launcher Special Weapon Plasma Cutter Impact Weapon Great Maul Piercing Weapon CR-A16's Pointy Stick Special Melee Weapon Datajack Build | -11 -10 -10 -9 -9 -8 -7 -7 -7 -7 -7 -6 -6 -6 -6 -6 -6 -5 -5 -5 -5 -4 -4 -4 -4 -4 -3 -3 ------- Run | Jun Mat Min Mat Sto Mat Fac Low Low Zio Dee Pro Fac Ext Cet Arc Hub Fac Upp Upp War Pro Fac Upp Upp Zhi Pro Res Slots Evolved 14 | . . . 2 . 2 2 . . . . . 2 . . . . 2 . . . . 2 . . . . 2 Power 2 | . . . . . . 1 . . . . . . . . . . . . . . . . . . . . 1 Propulsion 2 | . . . 1 . 1 . . . . . . . . . . . . . . . . . . . . . . Utility 10 | . . . 1 . 1 1 . . . . . 2 . . . . 2 . . . . 2 . . . . 1 Weapon . | . . . . . . . . . . . . . . . . . . . . . . . . . . . . Parts Attached 667 | 7 12 15 40 46 58 36 29 18 7 35 11 22 20 9 7 46 30 14 25 13 17 40 14 12 12 27 45 Power 29 | 1 2 1 3 3 4 2 1 . . 3 . . . . . 2 1 . 1 1 . . . . 2 . 2 Engine 14 | 1 2 1 3 3 2 1 . . . . . . . . . . . . 1 . . . . . . . . Core 4 | . . . . . 2 1 1 . . . . . . . . . . . . . . . . . . . . Reactor 11 | . . . . . . . . . . 3 . . . . . 2 1 . . 1 . . . . 2 . 2 Propulsion 77 | 2 3 . 9 10 16 8 . 1 4 4 5 2 1 . . 3 . . 2 2 . 1 . . 2 1 1 Treads 63 | 2 3 . 8 10 16 8 . 1 4 4 3 . . . . . . . . . . 1 . . 1 1 1 Leg 9 | . . . 1 . . . . . . . 2 . . . . 2 . . 2 2 . . . . . . . Wheel 4 | . . . . . . . . . . . . 2 1 . . 1 . . . . . . . . . . . Hover . | . . . . . . . . . . . . . . . . . . . . . . . . . . . . Flight 1 | . . . . . . . . . . . . . . . . . . . . . . . . . 1 . . Utility 412 | 2 4 5 14 1 11 15 17 16 . 17 5 18 19 8 6 36 29 14 21 9 17 39 14 10 7 23 35 Device 255 | 1 1 1 6 . 2 4 12 11 . 5 3 9 6 1 . 21 19 13 18 7 16 33 9 9 5 18 25 Storage 18 | 1 2 . 2 . . 1 . . . 2 . . 2 2 1 1 2 . . . . . 1 . . . 1 Processor 12 | . . . . . 1 2 . . . . . 1 1 . . 1 . 1 . 1 . . . . . . 4 Hackware 10 | . . 1 . . 1 1 . . . . . 2 . . 2 . 1 . . . . 2 . . . . . Protection 117 | . 1 3 6 1 7 7 5 5 . 10 2 6 10 5 3 13 7 . 3 1 1 4 4 1 2 5 5 Artifact . | . . . . . . . . . . . . . . . . . . . . . . . . . . . . Weapon 149 | 2 3 9 14 32 27 11 11 1 3 11 1 2 . 1 1 5 . . 1 1 . . . 2 1 3 7 Energy Gun 27 | . 3 5 10 6 2 . . . . . . . . . . . . . . 1 . . . . . . . Energy Cannon 9 | . . . . . . . . . 1 6 . . . . . 1 . . . . . . . . 1 . . Ballistic Gun 56 | 2 . 1 3 15 15 7 6 . 1 1 . . . 1 . 4 . . . . . . . . . . . Ballistic Cannon 2 | . . . . 1 . . 1 . . . . . . . . . . . . . . . . . . . . Launcher 42 | . . 2 1 9 9 3 2 1 . 3 . . . . . . . . . . . . . 2 . 3 7 Special Weapon 2 | . . . . . . . . . . . . 1 . . 1 . . . . . . . . . . . . Impact Weapon 5 | . . . . 1 1 . 2 . 1 . . . . . . . . . . . . . . . . . . Slashing Weapon . | . . . . . . . . . . . . . . . . . . . . . . . . . . . . Piercing Weapon 4 | . . . . . . . . . . 1 1 1 . . . . . . 1 . . . . . . . . Special Melee Weapon 2 | . . 1 . . . 1 . . . . . . . . . . . . . . . . . . . . . Unidentified Prototypes 40 | . . . 4 1 . 2 . . . 7 . 1 . 4 . 3 1 . . 7 . . . . 5 1 4 Corrupted Parts 3 | . . 3 . . . . . . . . . . . . . . . . . . . . . . . . . System Corruption 8 | . . 8 . . . . . . . . . . . . . . . . . . . . . . . . . Parts Lost 55 | . . 2 3 4 6 . 3 2 . 10 2 . 2 . . 1 1 1 . . . . . 2 . 1 15 Power 8 | . . . . 2 2 . . 1 . . . . . . . . 1 . . . . . . . . . 2 Propulsion 12 | . . . 2 . 3 . . 1 . 3 1 . . . . . . . . . . . . . . . 2 Utility 24 | . . 1 . . 1 . 1 . . 6 . . 2 . . 1 . 1 . . . . . 2 . 1 8 Weapon 11 | . . 1 1 2 . . 2 . . 1 1 . . . . . . . . . . . . . . . 3 Highest Loss Streak 12 | . . 1 2 2 4 . 2 2 . 4 2 . 1 . . 1 1 1 . . . . . 2 . 1 12 To Critical Strikes . | . . . . . . . . . . . . . . . . . . . . . . . . . . . . Average Slot Usage (%) 89 | . 99 98 99 98 96 99 99 94 85 92 80 81 78 79 79 89 92 93 89 87 87 87 87 81 61 83 79 Engine 2 | . 14 13 10 10 6 13 1 . . . . . . . . . . . . . . . . . . . . Core 1 | . . . . . 1 . 13 9 7 6 . . . . . . . . . . . . . . . . . Reactor 4 | . . . . . . . . . . 4 6 6 6 6 6 8 10 11 6 5 5 5 5 5 3 5 8 Treads 13 | . 27 28 32 32 35 30 30 29 30 29 13 . . . . . . . . . . 1 5 5 3 5 8 Leg 9 | . . . . . . . . . . . 13 15 13 13 12 16 23 23 22 22 23 18 10 10 10 9 . Wheel 1 | . . . . . . . . . . . . 4 6 6 6 4 . . . . . . . . . . . Device 10 | . 4 . 3 . 5 . 13 13 7 3 14 11 9 6 5 7 18 17 16 16 16 21 24 21 13 20 18 Storage 10 | . 14 14 11 11 9 7 7 7 7 6 13 13 13 13 12 10 10 11 11 11 11 10 10 10 10 10 8 Processor 3 | . . . . . 3 11 7 7 7 7 1 . . . . 1 . 2 5 5 5 5 5 5 5 5 11 Hackware 3 | . . . 11 11 7 9 . . . . . 4 . . . 8 3 2 . . . 4 5 5 5 5 2 Protection 10 | . 9 12 7 11 8 7 7 8 15 17 . 7 13 19 19 16 10 11 10 11 11 9 10 10 7 10 9 Energy Gun 2 | . 17 27 16 6 . . . . . . . . . . . . . . . . . . . . . . . Energy Cannon 6 | . . . . . . . . . 2 6 13 12 12 13 12 8 9 11 10 11 11 10 10 7 1 9 8 Ballistic Gun 3 | . 10 . 5 14 16 14 9 6 2 5 . . . . . 4 1 . . . . . . . . . . Naked Turns . | . . . . . . . . . . . . . . . . . . . . . . . . . . . . Heaviest Build 205 | 14 92 94 98 98 107 133 148 148 144 154 162 168 172 174 174 173 177 167 170 176 176 183 183 178 179 184 205 Greatest Support 180 | 40 40 40 72 60 80 96 96 96 91 93 95 95 60 28 60 120 140 120 120 120 120 120 60 60 60 160 180 Greatest Overweight (x) 57 | . 2 2 2 1 1 1 1 1 1 2 2 5 6 6 57 6 1 1 2 1 1 2 3 2 2 2 27 Average Overweight (x) 1 | . . 2 1 1 1 1 1 1 1 . 1 3 4 5 15 4 . 1 1 1 1 1 2 2 1 1 1 Largest Inventory Capacity 25 | 8 25 25 25 25 25 25 25 25 25 25 25 25 25 25 25 25 25 25 25 25 25 25 25 25 25 25 25 Average Capacity 24 | 7 14 25 25 25 25 25 25 25 25 24 25 25 25 25 24 25 24 25 25 25 25 25 25 25 25 25 24 Most Carried 25 | 5 15 23 25 25 25 25 25 25 25 25 20 25 25 25 25 25 25 25 25 25 25 25 25 25 25 25 25 Average Carried 23 | 2 11 20 24 24 24 24 23 24 24 22 16 23 24 24 24 24 24 24 24 24 24 24 24 24 24 24 23 Final Capacity 25 | 8 25 25 25 25 25 25 25 25 25 25 25 25 25 25 25 25 25 25 25 25 25 25 25 25 25 25 25 Final Carried 25 | 3 15 21 25 25 25 25 24 25 25 11 19 25 24 25 25 25 25 24 25 25 25 25 25 25 25 25 21 Class Distribution -------------------- 29% | Golem 24% | Scavenger-Mutant 24% | Mutant 10% | Scavenger-Golem 5% | Hacker-Mutant 3% | Commander-Golem Dominant Class ---------------- Mutant | -10/Materials Mutant | -10/Mines Scavenger-Mutant | -9/Materials Scavenger-Mutant | -9/Storage Scavenger-Mutant | -8/Materials Scavenger-Mutant | -7/Factory Scavenger-Mutant | -7/Lower Caves Scavenger-Mutant | -7/Lower Caves Mutant | -7/Zion Scavenger-Mutant | -7/Deep Caves Golem | -6/Proximity Caves Golem | -6/Factory Golem | -6/Extension Commander-Golem | -6/Cetus Golem | -6/Archives Hacker-Mutant | -6/Hub_04(d) Scavenger-Golem | -5/Factory Scavenger-Golem | -5/Upper Caves Scavenger-Golem | -5/Upper Caves Commander-Golem | -5/Warlord Golem | -4/Proximity Caves Golem | -4/Factory Mutant | -4/Upper Caves Mutant | -4/Upper Caves Mutant | -4/Zhirov Golem | -3/Proximity Caves Mutant | -3/Research Resources | -11 -10 -10 -9 -9 -8 -7 -7 -7 -7 -7 -6 -6 -6 -6 -6 -6 -5 -5 -5 -5 -4 -4 -4 -4 -4 -3 -3 ----------- Run | Jun Mat Min Mat Sto Mat Fac Low Low Zio Dee Pro Fac Ext Cet Arc Hub Fac Upp Upp War Pro Fac Upp Upp Zhi Pro Res Matter Collected 11209 | 302 555 145 894 742 1460 1004 756 316 120 394 360 240 180 110 70 725 305 145 230 150 140 407 124 298 . 472 565 Remotely 96 | . . . . . . . . 96 . . . . . . . . . . . . . . . . . . . Salvage Created 27820 | 97 1068 454 1849 1515 2007 1864 450 234 . 1063 1327 1218 1568 623 80 2211 1587 702 946 . 1031 1600 509 1138 . 1806 873 Parts 1282 | 5 73 24 110 99 93 102 17 3 . 39 42 60 61 18 12 119 79 27 42 . 34 90 14 33 . 53 33 Haulers Intercepted 19 | . 1 . 5 3 4 1 . . . . . . . . . . 1 . . . . 1 . . . 1 2 Recyclers Shooed 16 | 1 3 2 . 1 4 2 . . . . . . 2 . . . . . . . . 1 . . . . . Parts Field Recycled . | . . . . . . . . . . . . . . . . . . . . . . . . . . . . Retrieved Matter . | . . . . . . . . . . . . . . . . . . . . . . . . . . . . Parts Self-Destructed 279 | . . . . . . . 16 1 2 . 36 . . . . . . 25 45 . 55 . 13 35 . 51 . Prevented 21 | . . . . . . . . . . . . . . . . . . 3 2 . 13 . 1 . . 2 . Kills | -11 -10 -10 -9 -9 -8 -7 -7 -7 -7 -7 -6 -6 -6 -6 -6 -6 -5 -5 -5 -5 -4 -4 -4 -4 -4 -3 -3 ------- Run | Jun Mat Min Mat Sto Mat Fac Low Low Zio Dee Pro Fac Ext Cet Arc Hub Fac Upp Upp War Pro Fac Upp Upp Zhi Pro Res Combat Hostiles Destroyed 508 | . 22 12 33 37 46 27 11 15 . 59 17 22 14 9 . 37 19 13 18 . 16 20 7 17 . 25 12 Guns 131 | . 21 4 28 16 20 23 4 6 . 3 . . . . . 6 . . . . . . . . . . . Cannons 235 | . . . . . . . 1 5 . 9 17 21 14 9 . 31 19 13 17 . 16 20 7 13 . 17 6 AOE 136 | . 1 8 4 21 26 4 6 4 . 45 . . . . . . . . . . . . . 4 . 7 6 Classes Destroyed 28 | 2 6 1 3 2 1 1 1 1 . 3 . . . . . 2 1 . 1 . 1 . . 1 . . 1 Worker 9 | . . . 2 . 3 2 . . . . . . . . . 1 1 . . . . . . . . . . Builder 12 | . 2 . . . 4 1 . . . . . . 1 . . . . . . . . 4 . . . . . Tunneler 4 | 1 . . 1 1 . 1 . . . . . . . . . . . . . . . . . . . . . Hauler 19 | . 1 . 5 3 4 1 . . . . . . . . . . 1 . . . . 1 . . . 1 2 Recycler 22 | 1 3 2 2 . 4 5 . . . . . . 4 . . . 1 . . . . . . . . . . Minesweeper 3 | . . . . . . . . . . . . . . . . . . . 1 . 1 . . . . 1 . Mechanic 9 | . . . 1 3 . 1 . . . . 1 . . . . . 1 . . . . . . 1 . 1 . Operator 14 | . 3 . 2 . 1 1 . . . . . 1 1 . 2 1 . . . . . 1 . . . . 1 Watcher 29 | . 3 . 5 2 1 2 . . . . . 3 2 1 . 4 2 . . . . 3 . . . . 1 Swarmer 70 | . 9 6 9 5 5 3 . . . . 2 7 . . . 4 . 4 7 . 4 . . . . 3 2 Saboteur 1 | . . . . . . . . . . . . . . . . . . . . . 1 . . . . . . Grunt 199 | . 13 4 15 21 30 13 7 4 . . 11 5 5 5 . 11 6 7 7 . 4 7 3 9 . 12 . Brawler 17 | . . . . 2 2 . . . . . 2 . . . . . . . 2 . 2 . . 4 . 3 . Duelist 14 | . . . 1 2 1 . 1 . . . 1 . . 1 . . 1 . . . 3 . . 2 . 1 . Protector 4 | . . . . 1 2 . . . . . . . . . . 1 . . . . . . . . . . . Sentry 57 | . . 2 8 6 5 4 1 . . . 1 3 7 . . 6 2 2 1 . 2 2 . 2 . 2 1 Demolisher 3 | . . . . . . . . . . . . . . . . 2 . . . . . . . . . . 1 Specialist 4 | . . . . . . . . . . . . . . . . 2 2 . . . . . . . . . . Hunter 23 | . . . . . 1 2 . . . . 1 2 . . . 4 1 . . . . . 4 . . 4 4 Programmer 31 | . . . . . . 5 1 . . . . 4 . . . 4 6 . . . . 11 . . . . . Heavy 1 | . . . . . . . . . . . . . . . . . 1 . . . . . . . . . . Behemoth 5 | . . . . . . . 1 . . . . 1 2 . . . . . 1 . . . . . . . . Cetus Guard 3 | . . . . . . . . . . . . . . 3 . . . . . . . . . . . . . Lightning 3 | . . . . . . . . . . . . . . . . 3 . . . . . . . . . . . Striker 4 | . . . . . . . . . . . . . . . . . . . . . . . . . . . 4 Z-Light 6 | . . . . . . . . . . 6 . . . . . . . . . . . . . . . . . Tinkerer 1 | . . . . . . . . . . . . . . . . . . . . . . . . 1 . . . Assembler 2 | . . . . . . . . . . 2 . . . . . . . . . . . . . . . . . Assembled 60 | . . . . . . . . 11 . 49 . . . . . . . . . . . . . . . . . Golem 3 | . . . . . . . . . . 3 . . . . . . . . . . . . . . . . . Savage 1 | . . . . . . . . . . 1 . . . . . . . . . . . . . . . . . Best Kill Streak 48 | 2 5 3 5 8 12 5 3 10 . 48 9 4 4 4 1 7 7 4 8 . 5 5 3 9 . 7 5 Combat Bots Only 47 | . 3 3 4 7 9 5 3 10 . 47 9 4 2 4 . 7 4 4 8 . 5 5 3 8 . 7 5 Max Kills in Single Turn 11 | 1 2 3 3 6 4 2 2 2 . 11 2 1 1 2 1 2 2 1 2 . 1 2 1 1 . 2 3 Gunslinging 1 | . 1 . . 1 . . . . . . . . . . . . . . . . . . . . . . . Exploded 11 | . 1 3 2 5 3 2 2 2 . 11 . . . . . . . . . . . . . 1 . 2 3 Melee . | . . . . . . . . . . . . . . . . . . . . . . . . . . . . Uniques/NPCs Destroyed 1 | . . . . . . . . . . 1 . . . . . . . . . . . . . . . . . Z-Imprinter (-7/Deep Caves) Combat | -11 -10 -10 -9 -9 -8 -7 -7 -7 -7 -7 -6 -6 -6 -6 -6 -6 -5 -5 -5 -5 -4 -4 -4 -4 -4 -3 -3 -------- Run | Jun Mat Min Mat Sto Mat Fac Low Low Zio Dee Pro Fac Ext Cet Arc Hub Fac Upp Upp War Pro Fac Upp Upp Zhi Pro Res Damage Taken 29329 | . 545 545 1254 1148 2941 1454 864 407 . 3360 1255 1790 1059 933 132 1918 1047 359 759 9 115 456 419 1312 . 1360 3888 Core 3227 | . 93 106 154 133 359 77 84 20 . 411 93 160 10 81 . 195 203 30 66 . 13 33 18 63 . 54 771 Absorbed by Shields 4230 | . . . . . . . . . . . . . 54 . . 142 331 133 269 8 109 339 392 840 . 841 772 Reduced by Siege Mode 625 | . . . . . . . . . . . . . . . . . . . . . . . 15 178 . 137 295 Redirected to Shielding 139 | . . . . . . . . . . 139 . . . . . . . . . . . . . . . . . Regen/Repaired (Parts) 1606 | . . . . 18 529 . . . 858 . . . . . . . . . . 8 . 193 . . . . . Core Remaining (%) 48 | 100 . 20 . 28 34 . . . . . 2 . . . . 47 . . . . 68 . . . . 85 . Volleys Fired 1580 | 8 91 24 127 80 123 91 31 24 . 61 49 78 62 39 48 135 69 52 39 18 31 72 30 97 . 64 37 Largest 2 | 2 2 2 2 2 2 2 2 2 . 2 2 2 2 2 2 2 2 2 2 2 2 2 2 2 . 2 2 Hottest 260 | 40 90 90 112 90 68 56 76 76 . 132 50 50 50 50 50 66 50 50 50 50 50 50 50 50 . 260 260 Shots Fired 2668 | 16 182 43 251 130 228 180 50 44 . 93 88 120 116 63 53 224 118 88 73 19 62 115 56 100 . 95 61 Gun 1065 | 16 182 36 248 115 189 178 30 20 . 14 . . . . . 37 . . . . . . . . . . . Cannon 1433 | . . . . . . . 12 20 . 62 88 120 116 63 11 187 118 88 73 19 62 115 56 94 . 80 49 Launcher 128 | . . 7 3 15 39 2 8 4 . 17 . . . . . . . . . . . . . 6 . 15 12 Special 42 | . . . . . . . . . . . . . . . 42 . . . . . . . . . . . . Kinetic 806 | 16 120 . 125 52 182 178 42 40 . 14 . . . . . 37 . . . . . . . . . . . Thermal 1500 | . . . 88 4 . . . . . 8 88 120 116 63 53 187 118 88 73 19 62 115 56 94 . 95 53 Explosive 109 | . . 7 3 15 39 2 8 4 . 17 . . . . . . . . . . . . . 6 . . 8 Electromagnetic 253 | . 62 36 35 59 7 . . . . 54 . . . . . . . . . . . . . . . . . Robot Hit Streak 66 | 4 7 7 20 15 59 66 21 9 . 16 18 12 22 7 7 25 22 17 18 . 19 26 19 64 . 65 48 Robot Miss Streak 5 | 2 5 3 4 5 3 3 1 2 . 5 1 5 2 2 3 5 3 2 1 . 1 1 2 . . 1 2 Penetration Max . | . . . . . . . . . . . . . . . . . . . . . . . . . . . . Secondary Targets 19 | . 5 . 2 1 5 5 . . . . . . . . . 1 . . . . . . . . . . . Max Gunslinging Chain 1 | . 1 . 1 1 1 1 . . . . . . . . . 1 . . . . . . . . . . . Capacitor 17 | . . . . . . . . . . . . . . . . . . . . . . . . 17 . . . Shots Hit Robots 1691 | 9 91 27 168 74 172 134 38 27 . 64 60 60 84 45 34 110 77 37 41 . 50 81 38 55 . 70 45 Core Hits 1097 | 4 42 17 67 72 139 74 27 22 . 173 25 29 34 23 20 50 35 17 23 . 25 40 14 43 . 53 29 Critical Kills 6 | . . . . . . . . . . . . . . . . 6 . . . . . . . . . . . Critical Parts Destroyed 9 | . 1 . 1 . 2 1 . . . . . . . . . 4 . . . . . . . . . . . Critical Strikes 25 | . 4 . 4 1 2 1 . . . 2 . 1 . . . 10 . . . . . . . . . . . Burn 3 | . . . 3 . . . . . . . . . . . . . . . . . . . . . . . . Destroy 16 | . 1 . 1 1 2 1 . . . . . . . . . 10 . . . . . . . . . . . Corrupt 5 | . 3 . . . . . . . . 2 . . . . . . . . . . . . . . . . . Impale 1 | . . . . . . . . . . . . 1 . . . . . . . . . . . . . . . Melee Attacks 31 | . . 2 . 2 1 1 2 . 5 3 2 12 . . . . . . 1 . . . . . . . . Impact 10 | . . . . 2 1 . 2 . 5 . . . . . . . . . . . . . . . . . . Slashing . | . . . . . . . . . . . . . . . . . . . . . . . . . . . . Piercing 18 | . . . . . . . . . . 3 2 12 . . . . . . 1 . . . . . . . . Sneak Attacks 5 | . . 2 . . . 1 . . . . . 2 . . . . . . . . . . . . . . . Combat Hostiles 1 | . . . . . . . . . . . . 1 . . . . . . . . . . . . . . . Follow-up Attacks . | . . . . . . . . . . . . . . . . . . . . . . . . . . . . Damage Inflicted 70229 | 102 1437 913 3110 3132 6252 3059 1389 989 . 6213 3059 2869 3856 2227 737 4619 3792 1594 1867 . 2263 4167 1613 3306 . 4682 2982 Guns 11904 | 94 1251 361 2757 1171 2372 2702 487 333 . 234 . . . . . 142 . . . . . . . . . . . Cannons 40015 | . . . . . . . 162 273 . 1143 3059 2560 3821 2227 454 4470 3734 1594 1867 . 2263 4054 1613 2164 . 2932 1625 Explosions 17255 | . 164 537 239 1916 3860 292 740 383 . 4826 . . . . . . . . . . . 109 . 1116 . 1750 1323 Melee 269 | . . . . . . . . . . . . 269 . . . . . . . . . . . . . . . Ramming 503 | 8 22 15 114 45 20 65 . . . 10 . 40 35 . . 7 58 . . . . 4 . 26 . . 34 Kinetic 9488 | 94 682 . 1383 681 2315 2702 649 606 . 234 . . . . . 142 . . . . . . . . . . . Thermal 42785 | . 164 106 968 121 . . . . . 454 3059 2560 3821 2227 737 4470 3734 1594 1867 . 2263 4163 1613 2164 . 4682 2018 Explosive 14337 | . . 431 209 1829 3860 292 740 383 . 4547 . . . . . . . . . . . . . 1116 . . 930 Electromagnetic 2847 | . 569 361 436 456 57 . . . . 968 . . . . . . . . . . . . . . . . . Impact . | . . . . . . . . . . . . . . . . . . . . . . . . . . . . Slashing . | . . . . . . . . . . . . . . . . . . . . . . . . . . . . Piercing 269 | . . . . . . . . . . . . 269 . . . . . . . . . . . . . . . Highest Corruption 9 | . 1 9 . 1 1 3 1 1 1 . . . . . . 5 3 3 . . . 3 . 3 3 3 1 Average Corruption 1 | . 1 1 . 1 1 1 1 1 1 . . . . . . 4 1 1 . . . 1 . 2 3 3 1 Corruption Purged 13 | . . . . . . 3 . . . . . . . . . 1 1 3 . . . 4 . . . . 1 Corruption Blocked . | . . . . . . . . . . . . . . . . . . . . . . . . . . . . Effects 196 | . 9 18 . 4 10 18 15 8 . . . . . . . 26 7 1 . . . 12 . 23 11 34 . Message Errors 37 | . 1 1 . 2 5 4 2 3 . . . . . . . 3 1 . . . . 4 . 3 2 6 . Matter Fused 52 | . 1 6 . 1 1 6 6 2 . . . . . . . 10 1 . . . . 3 . 6 1 8 . Heat Flow Errors 23 | . . 3 . . 1 1 2 1 . . . . . . . 2 . . . . . 2 . 2 3 6 . Energy Discharges 28 | . 2 3 . . 1 3 2 1 . . . . . . . 4 1 . . . . 1 . 4 2 4 . Parts Fused 4 | . 1 . . . . 1 . . . . . . . . . . 1 . . . . . . 1 . . . Data Loss (minor) 26 | . 2 1 . . 1 3 1 1 . . . . . . . 4 2 1 . . . . . 4 2 4 . Data Loss (major) 12 | . 2 1 . . 1 . . . . . . . . . . 1 1 . . . . . . 2 1 3 . Misfires 9 | . . 2 . 1 . . 1 . . . . . . . . 1 . . . . . 1 . 1 . 2 . Alerts 5 | . . 1 . . . . 1 . . . . . . . . 1 . . . . . 1 . . . 1 . Overload Shots . | . . . . . . . . . . . . . . . . . . . . . . . . . . . . Overflow Damage 2118 | . . 41 . 6 46 . 23 7 . 174 228 279 179 . . 326 161 . 40 . 119 130 44 75 . 128 112 Projectiles 1600 | . . . . . . . . 7 . 30 228 175 179 . . 326 141 . 40 . 119 130 44 47 . 98 36 Explosions 369 | . . 41 . 6 46 . 23 . . 144 . . . . . . . . . . . . . 28 . 30 51 Melee 149 | . . . . . . . . . . . . 104 . . . . 20 . . . . . . . . . 25 Knockbacks 8 | . . 1 1 . . 1 . 4 . . . . . . . . 1 . . . . . . . . . . Impact 4 | . . 1 1 . . 1 . . . . . . . . . . 1 . . . . . . . . . . Kinetic 3 | . . . . . . . . 3 . . . . . . . . . . . . . . . . . . . Secondary 1 | . . . . . . . . 1 . . . . . . . . . . . . . . . . . . . Self-Inflicted Damage 1206 | . . 116 . 147 184 . 16 30 . . . . . . . 73 . . . . . 131 . 209 . . 300 Shots 30 | . . 3 . 5 6 . 1 1 . . . . . . . 1 . . . . . 2 . 6 . . 5 Rammed 38 | 2 5 3 8 9 3 6 . . . 1 . . . . . . . . . . . . . . . . 1 Targets Rammed 54 | 2 5 3 10 10 3 9 . . . 1 . 2 1 . . 1 4 . . . . 1 . 1 . . 1 Kicked 10 | . . . . . . . . . . . . 2 1 . . 1 4 . . . . 1 . 1 . . . Crushed 6 | . . . 2 1 . 3 . . . . . . . . . . . . . . . . . . . . . Highest Temperature 504 | . 192 315 504 245 245 191 232 172 . 434 41 5 11 3 . 220 14 26 1 . . 120 6 263 214 332 318 Average Temperature 75 | . 56 90 104 63 34 23 82 62 . 122 11 5 3 3 . 54 7 11 1 . . 59 5 78 102 145 142 Received Heat Transfer 5960 | . 126 135 513 342 1110 351 150 78 . 549 405 195 382 108 18 303 204 150 132 4 . 49 77 225 . 297 57 Effects 7 | . . . 3 . . . . . . 2 . . . . . . . . . . . . . . . 2 . Shutdowns 1 | . . . . . . . . . . 1 . . . . . . . . . . . . . . . . . Energy Bleed 5 | . . . 2 . . . . . . 1 . . . . . . . . . . . . . . . 2 . Damage (minor) 1 | . . . 1 . . . . . . . . . . . . . . . . . . . . . . . . Siege Activations 12 | . . . . . . . . . . . . . . . . . . . . . . . 2 3 . 4 3 Total Turns 311 | . . . . . . . . . . . . . . . . . . . . . . . 56 87 . 109 59 Longest Duration 58 | . . . . . . . . . . . . . . . . . . . . . . . 34 58 . 42 40 Robots Corrupted 2 | . . . . . . . . . . 2 . . . . . . . . . . . . . . . . . Combat Hostiles 2 | . . . . . . . . . . 2 . . . . . . . . . . . . . . . . . Parts Fried 22 | . 4 2 6 2 1 . . . . 6 . . . . . . . . . . 1 . . . . . . Impact Corruptions 3 | . . . . . . . . . . . . . . . . . 1 . . . . . . . . . 2 Robots Melted 2 | . . . 1 . . . . . . . . . . . . . . . . . . . . . . 1 . Combat Hostiles 2 | . . . 1 . . . . . . . . . . . . . . . . . . . . . . 1 . Parts Melted 25 | . . . 6 . . . . . . . 1 3 . 1 1 2 2 1 . . . 1 1 . . 6 . Heat Transferred 28201 | . 250 100 2270 274 . . . . . 381 1650 1350 2100 1225 1274 2350 2025 900 1075 . 1262 2250 900 1200 . 3930 1435 Parts Sabotaged . | . . . . . . . . . . . . . . . . . . . . . . . . . . . . Parts Stolen . | . . . . . . . . . . . . . . . . . . . . . . . . . . . . Parts Stripped . | . . . . . . . . . . . . . . . . . . . . . . . . . . . . Power Chain Reactions 9 | . 3 1 2 2 . . . . . 1 . . . . . . . . . . . . . . . . . Missiles Intercepted . | . . . . . . . . . . . . . . . . . . . . . . . . . . . . Alert | -11 -10 -10 -9 -9 -8 -7 -7 -7 -7 -7 -6 -6 -6 -6 -6 -6 -5 -5 -5 -5 -4 -4 -4 -4 -4 -3 -3 ------- Run | Jun Mat Min Mat Sto Mat Fac Low Low Zio Dee Pro Fac Ext Cet Arc Hub Fac Upp Upp War Pro Fac Upp Upp Zhi Pro Res Peak Influence 1345 | 10 422 273 669 1111 1345 689 . . . . . 468 855 1067 482 490 479 . . . . 661 . . . . 314 Initial 595 | . 6 143 . 162 469 595 . . . . . 138 212 462 346 . 221 . . . . 101 . . . . 50 Average 333 | 6 275 84 339 619 844 446 . . . . . 233 387 771 83 304 271 . . . . 297 . . . . 56 Maximum Alert Level 4 | . 2 1 2 4 4 2 . . . . . 2 3 3 2 2 2 . . . . 2 . . . . 1 Low Security (%) 36 | 100 32 97 28 6 . . . . . . . 34 9 . 81 24 12 . . . . 47 . . . . 94 Level 1 29 | . 65 2 30 20 1 33 . . . . . 55 61 . 10 40 72 . . . . 16 . . . . 5 Level 2 23 | . 2 . 40 19 39 66 . . . . . 10 9 24 8 35 14 . . . . 36 . . . . . Level 3 8 | . . . . 51 34 . . . . . . . 19 75 . . . . . . . . . . . . . Level 4 2 | . . . . . 24 . . . . . . . . . . . . . . . . . . . . . . Level 5 . | . . . . . . . . . . . . . . . . . . . . . . . . . . . . High Security . | . . . . . . . . . . . . . . . . . . . . . . . . . . . . Max Security . | . . . . . . . . . . . . . . . . . . . . . . . . . . . . Sterilizations 1 | . . . . . 1 . . . . . . . . . . . . . . . . . . . . . . Squads Dispatched 95 | . 6 . 10 11 13 10 . . . . 1 8 2 . . 14 6 . 1 . 1 5 . 1 . 1 5 Investigation 31 | . 3 . 8 3 5 2 . . . . . 4 1 . . 2 . . . . . 1 . . . . 2 Extermination 19 | . . . . . . 6 . . . . . 4 . . . 4 2 . . . . 3 . . . . . Reinforcement 29 | . 3 . 2 4 4 2 . . . . . . 1 . . 6 3 . . . . 1 . . . . 3 Assault 12 | . . . . 4 3 . . . . . 1 . . . . . . . 1 . 1 . . 1 . 1 . Garrison 4 | . . . . . 1 . . . . . . . . . . 2 1 . . . . . . . . . . Intercept . | . . . . . . . . . . . . . . . . . . . . . . . . . . . . Searches Triggered . | . . . . . . . . . . . . . . . . . . . . . . . . . . . . Construction Impeded 3 | . . . . 2 1 . . . . . . . . . . . . . . . . . . . . . . Haulers Reinforced 2 | . . . . . . 1 . . . . . . . . . . . . . . . 1 . . . . . Active Scanning Responses . | . . . . . . . . . . . . . . . . . . . . . . . . . . . . Cargo Convoy Interrupts 1 | . . . . . . . . . . . . . . . . . 1 . . . . . . . . . . Stealth | -11 -10 -10 -9 -9 -8 -7 -7 -7 -7 -7 -6 -6 -6 -6 -6 -6 -5 -5 -5 -5 -4 -4 -4 -4 -4 -3 -3 --------- Run | Jun Mat Min Mat Sto Mat Fac Low Low Zio Dee Pro Fac Ext Cet Arc Hub Fac Upp Upp War Pro Fac Upp Upp Zhi Pro Res Distress Signals 26 | . 3 . 4 1 4 . . . . . . . 3 2 . 2 3 . . . . 1 . . . . 3 Communications Jammed 7 | . . . . . . . . . . . . . . . . . . . . . . 4 . 2 . . 1 Distress Signals 7 | . . . . . . . . . . . . . . . . . . . . . . 4 . 2 . . 1 Times Spotted 828 | . 38 12 47 55 78 40 11 15 . 85 22 34 28 19 63 56 31 15 18 11 30 29 7 24 . 30 30 Peak Tracking Total 36 | . 4 3 5 9 9 4 3 4 . 36 9 5 4 6 1 6 5 5 9 10 9 4 3 6 . 7 5 Tactical Retreats 38 | . 2 . 2 . 2 . . 2 . 8 3 1 2 . . 4 2 1 2 . 2 3 . . . 1 1 Traps | -11 -10 -10 -9 -9 -8 -7 -7 -7 -7 -7 -6 -6 -6 -6 -6 -6 -5 -5 -5 -5 -4 -4 -4 -4 -4 -3 -3 ------- Run | Jun Mat Min Mat Sto Mat Fac Low Low Zio Dee Pro Fac Ext Cet Arc Hub Fac Upp Upp War Pro Fac Upp Upp Zhi Pro Res Traps Triggered 18 | . 2 . 2 4 3 . . . . . . . 3 . . 2 . . . . . . . . . 1 1 Indirectly . | . . . . . . . . . . . . . . . . . . . . . . . . . . . . Trap Hack Attempts . | . . . . . . . . . . . . . . . . . . . . . . . . . . . . Triggered . | . . . . . . . . . . . . . . . . . . . . . . . . . . . . Disarmed . | . . . . . . . . . . . . . . . . . . . . . . . . . . . . Reprogrammed . | . . . . . . . . . . . . . . . . . . . . . . . . . . . . Reused . | . . . . . . . . . . . . . . . . . . . . . . . . . . . . Traps Extracted 2 | . . . . . . . . . . . . . . . . . . 2 . . . . . . . . . Installed . | . . . . . . . . . . . . . . . . . . . . . . . . . . . . Triggered 15 | . . . . 1 . . . . . . . . . . . . 2 . . 9 . . 1 1 . 1 . Most Traps Carried 7 | . . . . . . . . . . . . . . . . . . 2 7 6 6 6 6 6 6 6 6 Machines | -11 -10 -10 -9 -9 -8 -7 -7 -7 -7 -7 -6 -6 -6 -6 -6 -6 -5 -5 -5 -5 -4 -4 -4 -4 -4 -3 -3 ---------- Run | Jun Mat Min Mat Sto Mat Fac Low Low Zio Dee Pro Fac Ext Cet Arc Hub Fac Upp Upp War Pro Fac Upp Upp Zhi Pro Res Machines Disabled 47 | . 4 . 4 5 2 . . . . 2 . 3 4 1 1 8 4 . 1 1 . 3 . . . 1 3 Max in Single Turn 5 | . 1 . 2 1 1 . . . . 1 . 1 1 1 . 5 1 . 1 1 . 2 . . . 1 1 Garrison Access 7 | . . . . 1 1 1 . . . . . . . . . 2 1 . . . . . . . . . 1 Network Hub 3 | . . . . . . . . . . . . . . . . 3 . . . . . . . . . . . Machines Repaired . | . . . . . . . . . . . . . . . . . . . . . . . . . . . . Machines Sabotaged . | . . . . . . . . . . . . . . . . . . . . . . . . . . . . Overloaded Fab Kills . | . . . . . . . . . . . . . . . . . . . . . . . . . . . . Hacking | -11 -10 -10 -9 -9 -8 -7 -7 -7 -7 -7 -6 -6 -6 -6 -6 -6 -5 -5 -5 -5 -4 -4 -4 -4 -4 -3 -3 --------- Run | Jun Mat Min Mat Sto Mat Fac Low Low Zio Dee Pro Fac Ext Cet Arc Hub Fac Upp Upp War Pro Fac Upp Upp Zhi Pro Res Machines Accessed 132 | . 8 . 14 14 12 14 . . 1 . . 15 8 . 1 10 8 1 2 2 . 13 . . 4 . 5 Terminals 71 | . 5 . 9 9 6 8 . . . . . 8 7 . . 8 4 . . . . 6 . . . . 1 Fabricators 13 | . . . . . . 3 . . . . . 4 . . . . 1 . . . . 3 . . . . 2 Repair Stations 9 | . 1 . 1 2 2 1 . . . . . . . . . . . . . . . 2 . . . . . Recycling Units 9 | . 2 . 2 2 1 . . . . . . . 1 . . . . . . . . 1 . . . . . Scanalyzers 9 | . . . 2 . 2 . . . . . . 1 . . . . 2 . . . . 1 . . . . 1 Garrison Access 10 | . . . . 1 1 2 . . . . . 2 . . . 2 1 . . . . . . . . . 1 Total Hacks 518 | . 29 . 61 36 51 36 . . 3 . . 65 23 . 3 32 42 1 2 5 . 97 . . 16 . 16 Successful 286 | . 10 . 33 25 34 18 . . 3 . . 29 10 . 3 13 27 1 2 5 . 50 . . 16 . 7 Failed 230 | . 18 . 27 11 17 18 . . . . . 36 13 . . 19 15 . . . . 47 . . . . 9 Catastrophic 42 | . 2 . 3 1 1 3 . . . . . 8 1 . . 8 4 . . . . 8 . . . . 3 Database Lockouts 2 | . 1 . 1 . . . . . . . . . . . . . . . . . . . . . . . . Manual 198 | . 9 . 30 12 23 15 . . . . . 27 11 1 . 19 6 . . . . 43 . . . . 2 Terminals 270 | . 18 . 39 22 32 20 . . . . . 25 21 . . 29 18 . . . . 45 . . . . 1 Fabricators 46 | . . . . . . 8 . . . . . 19 . . . . 1 . . . . 12 . . . . 6 Repair Stations 35 | . 3 . 5 9 8 4 . . . . . . . . . . . . . . . 6 . . . . . Recycling Units 31 | . 8 . 4 4 2 . . . . . . . 2 . . . . . . . . 11 . . . . . Scanalyzers 86 | . . . 13 . 7 . . . . . . 14 . . . . 22 . . . . 23 . . . . 7 Garrison Access 20 | . . . . 1 2 4 . . . . . 7 . . . 3 1 . . . . . . . . . 2 Terminal Hacks 120 | . 5 . 16 13 12 7 . . 3 . . 4 4 . 3 11 5 1 2 5 . 13 . . 16 . . Record 12 | . . . . . . . . . . . . . . . 3 . . . 1 4 . . . . 4 . . Part Schematic 13 | . . . 1 2 1 . . . 3 . . . 1 . . . 1 . . . . . . . 4 . . Robot Schematic 1 | . . . . 1 . . . . . . . . . . . . . . . . . . . . . . . Robot Analysis 13 | . 1 . 1 3 2 . . . . . . . 1 . . . . . . . . 1 . . 4 . . Prototype ID Bank 16 | . 2 . 3 2 3 1 . . . . . . . . . . 1 . . . . . . . 4 . . Open Door 7 | . . . . 2 . . . . . . . 1 1 . . . . 1 1 1 . . . . . . . Level Access Points 2 | . . . . . . . . . . . . 1 . . . 1 . . . . . . . . . . . Branch Access Points 4 | . . . 1 . . 1 . . . . . . . . . . 1 . . . . 1 . . . . . Terminal Index 3 | . . . 1 . 1 1 . . . . . . . . . . . . . . . . . . . . . Fabricator Index 2 | . . . . . . 1 . . . . . . . . . . . . . . . 1 . . . . . Recycling Unit Index 1 | . . . 1 . . . . . . . . . . . . . . . . . . . . . . . . Scanalyzer Index 2 | . . . . . . . . . . . . . . . . . 1 . . . . 1 . . . . . Alert Level 6 | . . . 2 . 1 . . . . . . . . . . 1 . . . . . 2 . . . . . Unreport Threat 7 | . . . 3 1 . 1 . . . . . . . . . 2 . . . . . . . . . . . Locate Traps 6 | . . . . 1 . . . . . . . . . . . 3 . . . . . 2 . . . . . Maintenance Status 2 | . 1 . . . . . . . . . . . . . . . . . . . . 1 . . . . . Hauler Manifests 5 | . 1 . 1 1 1 . . . . . . . . . . . . . . . . 1 . . . . . Registered Components 1 | . . . . . 1 . . . . . . . . . . . . . . . . . . . . . . Zone Layout 17 | . . . 2 . 2 2 . . . . . 2 1 . . 4 1 . . . . 3 . . . . . Fabricator Hacks 20 | . . . . . . 5 . . . . . 8 . . . . 1 . . . . 5 . . . . 1 Network Status 4 | . . . . . . . . . . . . 1 . . . . 1 . . . . 1 . . . . 1 Load Schematic 8 | . . . . . . 3 . . . . . 4 . . . . . . . . . 1 . . . . . Build 8 | . . . . . . 2 . . . . . 3 . . . . . . . . . 3 . . . . . Repair Station Hacks 20 | . . . 1 6 8 1 . . . . . . . . . . . . . . . 4 . . . . . Scan Component 11 | . . . 1 3 4 1 . . . . . . . . . . . . . . . 2 . . . . . Repair 9 | . . . . 3 4 . . . . . . . . . . . . . . . . 2 . . . . . Recycling Unit Hacks 8 | . 2 . 2 1 1 . . . . . . . 1 . . . . . . . . 1 . . . . . Report Inventory 7 | . 1 . 2 1 1 . . . . . . . 1 . . . . . . . . 1 . . . . . Retrieve Components 1 | . 1 . . . . . . . . . . . . . . . . . . . . . . . . . . Scanalyzer 67 | . . . 10 . 5 . . . . . . 11 . . . . 19 . . . . 17 . . . . 5 Insert Component 31 | . . . 5 . 2 . . . . . . 4 . . . . 8 . . . . 9 . . . . 3 Analyze 36 | . . . 5 . 3 . . . . . . 7 . . . . 11 . . . . 8 . . . . 2 Garrison Access Hacks 7 | . . . . 1 1 1 . . . . . . . . . 2 1 . . . . . . . . . 1 Seal Access 7 | . . . . 1 1 1 . . . . . . . . . 2 1 . . . . . . . . . 1 Unauthorized Hacks 44 | . 3 . 4 4 7 4 . . . . . 6 5 . . . 1 . . . . 10 . . . . . Terminals 20 | . 1 . 1 1 4 2 . . . . . 1 4 . . . 1 . . . . 5 . . . . . Track 3 | . . . . . . . . . . . . . 1 . . . . . . . . 2 . . . . . Assimilate 1 | . . . . . . 1 . . . . . . . . . . . . . . . . . . . . . Botnet 6 | . . . . . 3 . . . . . . . 1 . . . . . . . . 2 . . . . . Disrupt 2 | . . . . . . . . . . . . . 2 . . . . . . . . . . . . . . Operators 8 | . 1 . 1 1 1 1 . . . . . 1 . . . . 1 . . . . 1 . . . . . Fabricators 9 | . . . . . . 2 . . . . . 5 . . . . . . . . . 2 . . . . . Report 2 | . . . . . . 1 . . . . . 1 . . . . . . . . . . . . . . . Prioritize 1 | . . . . . . . . . . . . . . . . . . . . . . 1 . . . . . Liberate 1 | . . . . . . . . . . . . 1 . . . . . . . . . . . . . . . Haulers 4 | . . . . . . 1 . . . . . 2 . . . . . . . . . 1 . . . . . Recompile 1 | . . . . . . . . . . . . 1 . . . . . . . . . . . . . . . Repair Stations . | . . . . . . . . . . . . . . . . . . . . . . . . . . . . Recycling Units 12 | . 2 . 2 3 1 . . . . . . . 1 . . . . . . . . 3 . . . . . Reject 3 | . . . . 1 . . . . . . . . 1 . . . . . . . . 1 . . . . . Recyclers 1 | . . . . . . . . . . . . . . . . . . . . . . 1 . . . . . Mask 1 | . . . . . . . . . . . . . . . . . . . . . . 1 . . . . . Tunnel 7 | . 2 . 2 2 1 . . . . . . . . . . . . . . . . . . . . . . Scanalyzers 3 | . . . 1 . 2 . . . . . . . . . . . . . . . . . . . . . . Extract 3 | . . . 1 . 2 . . . . . . . . . . . . . . . . . . . . . . Garrison Access . | . . . . . . . . . . . . . . . . . . . . . . . . . . . . Data Cores Recovered 4 | . . . . . . . . . . . . 1 1 . . 1 . . . . . 1 . . . . . Used 2 | . . . . . . . . . . . . . 1 . . . . . . . . 1 . . . . . Hacking Detections 99 | . 7 . 12 10 10 13 . . . . . 14 7 . . 8 5 . . . . 9 . . . . 4 Full Trace Events 22 | . 3 . 5 3 2 2 . . . . . 3 1 . . 1 . . . . . 1 . . . . 1 Feedback Events 4 | . 1 . . 1 1 . . . . . . . . . . . . . . . . . . . . . 1 Corruption 4 | . 1 . . 1 1 . . . . . . . . . . . . . . . . . . . . . 1 Feedback Blocked . | . . . . . . . . . . . . . . . . . . . . . . . . . . . . Robot Schematics Acquired 2 | . . . . 1 . . . . 1 . . . . . . . . . . . . . . . . . . Robots Built . | . . . . . . . . . . . . . . . . . . . . . . . . . . . . Authchips . | . . . . . . . . . . . . . . . . . . . . . . . . . . . . Time . | . . . . . . . . . . . . . . . . . . . . . . . . . . . . Total Robot Build Rating . | . . . . . . . . . . . . . . . . . . . . . . . . . . . . Part Schematics Acquired 60 | . . . 7 2 9 . . . 17 . . 4 1 . . . 8 . . . . 6 . . 4 . 2 Parts Built 13 | . . . . . . 2 . . . . . 6 . . . . . . . . . 5 . . . . . Authchips 1 | . . . . . . . . . . . . 1 . . . . . . . . . . . . . . . Time 529 | . . . . . . 135 . . . . . 168 . . . . . . . . . 226 . . . . . Total Part Build Rating 74 | . . . . . . 5 . . . . . 24 . . . . . . . . . 45 . . . . . Parts Repaired 9 | . . . . 3 4 . . . . . . . . . . . . . . . . 2 . . . . . Time 616 | . . . . 289 191 . . . . . . . . . . . . . . . . 136 . . . . . Parts Recycled . | . . . . . . . . . . . . . . . . . . . . . . . . . . . . Recycled Matter . | . . . . . . . . . . . . . . . . . . . . . . . . . . . . Retrieved Matter . | . . . . . . . . . . . . . . . . . . . . . . . . . . . . Retrieved Components 9 | . 9 . . . . . . . . . . . . . . . . . . . . . . . . . . Parts Scanalyzed 27 | . . . 5 . 2 . . . . . . 4 . . . . 7 . . . . 6 . . . . 3 Part Schematics Acquired 26 | . . . 5 . 2 . . . . . . 4 . . . . 7 . . . . 6 . . . . 2 Parts Damaged 3 | . . . 2 . . . . . . . . . . . . . . . . . . 1 . . . . . Bothacking | -11 -10 -10 -9 -9 -8 -7 -7 -7 -7 -7 -6 -6 -6 -6 -6 -6 -5 -5 -5 -5 -4 -4 -4 -4 -4 -3 -3 ------------ Run | Jun Mat Min Mat Sto Mat Fac Low Low Zio Dee Pro Fac Ext Cet Arc Hub Fac Upp Upp War Pro Fac Upp Upp Zhi Pro Res Used RIF Installer . | . . . . . . . . . . . . . . . . . . . . . . . . . . . . Robots Hacked 3 | . . 2 . . . 1 . . . . . . . . . . . . . . . . . . . . . Non-combat 1 | . . . . . . 1 . . . . . . . . . . . . . . . . . . . . . Combat 2 | . . 2 . . . . . . . . . . . . . . . . . . . . . . . . . Robot Hacks Applied 3 | . . 2 . . . 1 . . . . . . . . . . . . . . . . . . . . . parse_system 2 | . . 2 . . . . . . . . . . . . . . . . . . . . . . . . . find_chute 1 | . . . . . . 1 . . . . . . . . . . . . . . . . . . . . . Relay Couplers Released . | . . . . . . . . . . . . . . . . . . . . . . . . . . . . Fabnet Peak Effective % . | . . . . . . . . . . . . . . . . . . . . . . . . . . . . Robots Rewired 23 | . . . . . . . . . . . 2 . 7 . . . . 1 2 5 2 . . 2 . 2 . Allies Hacked . | . . . . . . . . . . . . . . . . . . . . . . . . . . . . Hacks Repelled . | . . . . . . . . . . . . . . . . . . . . . . . . . . . . Allies | -11 -10 -10 -9 -9 -8 -7 -7 -7 -7 -7 -6 -6 -6 -6 -6 -6 -5 -5 -5 -5 -4 -4 -4 -4 -4 -3 -3 -------- Run | Jun Mat Min Mat Sto Mat Fac Low Low Zio Dee Pro Fac Ext Cet Arc Hub Fac Upp Upp War Pro Fac Upp Upp Zhi Pro Res Total Allies 62 | . . 2 . 12 . 1 . . 12 . 2 2 12 5 . . . 1 2 5 2 . . 2 . 2 . Largest Group 12 | . . 2 2 12 12 1 1 . 12 12 2 2 9 8 5 2 . 1 2 7 7 2 . 2 . 2 . Highest-Rated Group 403 | . . 46 46 150 150 26 26 . 258 258 58 82 403 352 326 183 . 29 79 331 331 89 . 77 . 94 . Highest-Rated Ally 159 | . . 31 31 31 31 26 26 . 31 31 29 41 159 153 96 96 . 29 49 65 65 65 . 47 . 47 . Total Orders 23 | . . . . . . 6 . . . . . . . . . 17 . . . . . . . . . . . STAY 17 | . . . . . . 3 . . . . . . . . . 14 . . . . . . . . . . . FOLLOW 6 | . . . . . . 3 . . . . . . . . . 3 . . . . . . . . . . . Ally Attacks 511 | . . . 15 52 90 . . . . 53 13 12 80 52 21 16 . 8 . 8 80 . . 8 . 3 . Total Damage 11385 | . . . 251 720 961 . . . . 1039 169 496 2211 1359 739 541 . 18 . 247 2305 . . 227 . 102 . Kills 91 | . . . 6 6 9 . . . . 7 . 5 21 14 4 2 . . . . 16 . . 1 . . . Allies Corrupted 3 | . . . . . . . . . . . . . . . . 2 . . . . 1 . . . . . . Allies Melted 3 | . . . . . 1 . . . . . . . . 2 . . . . . . . . . . . . . Intel | -11 -10 -10 -9 -9 -8 -7 -7 -7 -7 -7 -6 -6 -6 -6 -6 -6 -5 -5 -5 -5 -4 -4 -4 -4 -4 -3 -3 ------- Run | Jun Mat Min Mat Sto Mat Fac Low Low Zio Dee Pro Fac Ext Cet Arc Hub Fac Upp Upp War Pro Fac Upp Upp Zhi Pro Res Robot Analysis Total 13 | . 1 . 1 3 2 . . . . . . . 1 . . . . . . . . 1 . . 4 . . Derelict Logs Recovered 15 | . . 1 . . . . 2 2 1 . 1 . . . . . . 3 2 . 1 . 1 1 . . . Drone Launches 3 | . . . . . . . . . . . . . . . . 3 . . . . . . . . . . . Drone Recoveries . | . . . . . . . . . . . . . . . . . . . . . . . . . . . . Exploration | -11 -10 -10 -9 -9 -8 -7 -7 -7 -7 -7 -6 -6 -6 -6 -6 -6 -5 -5 -5 -5 -4 -4 -4 -4 -4 -3 -3 ------------- Run | Jun Mat Min Mat Sto Mat Fac Low Low Zio Dee Pro Fac Ext Cet Arc Hub Fac Upp Upp War Pro Fac Upp Upp Zhi Pro Res Turns Passed 63608 | 109 1861 2079 3122 2434 3185 3268 2628 1813 2914 2013 3050 2952 1797 404 4401 4040 1767 2439 2733 1418 2423 1758 1984 2454 522 1712 2328 Spaces Moved 23131 | 62 805 609 1048 840 1051 1125 1033 693 1200 766 878 1306 636 135 483 1505 757 1091 1183 727 914 699 883 986 228 677 811 Core 173 | 27 . . . . . . . . . 45 . . . . 100 . . . . . . . . . . . 1 Treads 9993 | 35 805 609 1048 840 1051 1125 1033 693 1200 721 6 . . . . . . . . . . . . . . 17 810 Legs 9767 | . . . . . . . . . . . 872 373 45 . 73 276 757 1091 1183 727 914 699 883 986 228 660 . Wheels 3198 | . . . . . . . . . . . . 933 591 135 310 1229 . . . . . . . . . . . Hover . | . . . . . . . . . . . . . . . . . . . . . . . . . . . . Flight . | . . . . . . . . . . . . . . . . . . . . . . . . . . . . Fastest Speed 50 | 50 160 320 240 240 240 235 240 240 238 50 185 175 175 160 175 125 125 175 175 175 175 175 210 210 180 210 160 Average Speed 221 | 112 187 320 240 240 240 237 240 240 239 226 210 178 180 186 747 180 174 175 176 175 175 181 210 210 200 211 251 Slowest Speed 2900 | 160 320 320 320 240 240 240 240 240 242 323 238 210 210 190 2900 210 175 175 225 176 175 210 240 210 210 250 1400 Overloaded Moves . | . . . . . . . . . . . . . . . . . . . . . . . . . . . . Propulsion Burnouts . | . . . . . . . . . . . . . . . . . . . . . . . . . . . . Robots Hopped . | . . . . . . . . . . . . . . . . . . . . . . . . . . . . Cave-ins Triggered . | . . . . . . . . . . . . . . . . . . . . . . . . . . . . Exploration Rate (%) 74 | 4 100 95 91 96 91 35 97 98 86 76 87 33 75 63 97 78 21 98 99 81 98 18 97 86 60 85 32 Regions Visited 27 Branch Regions 19 Pre-discovered Areas 17 | . 2 1 2 2 1 . . . 2 . 1 . . . . . . . 1 . 1 . 1 . 3 . . Known Exits Taken 7 | . . . 1 . . 1 . . 1 . . . . . . 1 1 1 . . . 1 . . . . . Unknown Exits Taken 20 | 1 1 1 . 1 1 . 1 1 . 1 1 1 1 1 1 . . . 1 1 1 . 1 1 1 1 . Scrap Searched 39 | . . 1 . . . . 4 4 5 . 3 . . . . . . 4 4 . 2 . 4 4 . 4 . Spaces Dug 316 | . . 10 5 22 1 . 2 17 2 . 7 28 5 . . 58 13 24 16 14 . 19 10 43 . 12 8 Terrain Destroyed 1390 | . 5 70 49 122 138 20 79 49 2 47 24 55 26 12 . 252 30 42 28 14 10 54 18 112 . 48 84 Melee 7 | . . . . . 1 . 2 . 2 . 2 . . . . . . . . . . . . . . . . Projectile 442 | . . . . . . . . 1 . . 22 55 26 12 . 85 30 42 28 14 10 24 18 43 . 22 10 AOE 940 | . 5 70 49 122 137 20 77 48 . 47 . . . . . 166 . . . . . 30 . 69 . 26 74 Terrain Rammed . | . . . . . . . . . . . . . . . . . . . . . . . . . . . . Walls Destroyed . | . . . . . . . . . . . . . . . . . . . . . . . . . . . . Machines Disabled . | . . . . . . . . . . . . . . . . . . . . . . . . . . . . Actions | -11 -10 -10 -9 -9 -8 -7 -7 -7 -7 -7 -6 -6 -6 -6 -6 -6 -5 -5 -5 -5 -4 -4 -4 -4 -4 -3 -3 --------- Run | Jun Mat Min Mat Sto Mat Fac Low Low Zio Dee Pro Fac Ext Cet Arc Hub Fac Upp Upp War Pro Fac Upp Upp Zhi Pro Res Total 32794 | 84 986 689 1406 1107 1480 1542 1120 792 1239 948 1998 1787 1172 230 1198 2599 1089 1530 1758 855 1672 1067 954 1290 300 869 1033 Wait 6115 | . 43 23 102 94 201 213 17 52 5 30 1016 313 332 28 599 868 160 365 397 10 677 224 12 164 31 68 71 Move 23105 | 62 804 608 1047 839 1050 1124 1032 692 1199 765 877 1305 635 134 482 1504 756 1090 1182 726 913 698 882 985 227 676 811 Hop . | . . . . . . . . . . . . . . . . . . . . . . . . . . . . Pick Up 355 | 6 20 10 36 11 15 24 4 4 11 19 11 17 8 7 25 16 27 1 10 3 1 11 7 3 6 10 32 Fast Attach 145 | 4 3 . 12 4 11 11 1 . . 13 . 5 3 2 5 9 9 . 8 11 2 5 3 1 9 4 10 Attach 130 | 3 5 4 12 4 5 5 7 1 4 11 5 6 3 2 2 9 6 1 3 . . 5 3 8 4 1 11 Detach 191 | . 1 2 2 1 1 5 4 . 1 6 14 21 10 5 10 10 7 6 17 5 7 8 1 9 11 9 18 Swap 393 | . 4 11 16 38 42 20 21 17 3 11 6 11 14 5 . 28 15 13 14 2 15 30 8 3 . 22 24 Drop 399 | . 10 2 42 18 28 39 1 2 11 28 5 17 9 8 27 16 36 1 18 12 3 13 8 4 12 11 18 Fire 1580 | 8 91 24 127 80 123 91 31 24 . 61 49 78 62 39 48 135 69 52 39 18 31 72 30 97 . 64 37 Melee 31 | . . 2 . 2 1 1 2 . 5 3 2 12 . . . . . . 1 . . . . . . . . Ram . | . . . . . . . . . . . . . . . . . . . . . . . . . . . . Kick 10 | . . . . . . . . . . . . 2 1 . . 1 4 . . . . 1 . 1 . . . Crush 43 | 1 5 3 10 10 3 9 . . . 1 . . . . . . . . . . . . . . . . 1 Escape Stasis 25 | . . . . 6 . . . . . . . . 16 . . 3 . . . . . . . . . . . Rewire 272 | . . . . . . . . . . . 13 . 79 . . . . 1 69 68 23 . . 15 . 4 . Trap . | . . . . . . . . . . . . . . . . . . . . . . . . . . . . Miscellaneous . | . . . . . . . . . . . . . . . . . . . . . . . . . . . . Route ------- -11/Junkyard -10/Materials (discovered 4 exits: *Mat x3 / [*Min]) -10/Mines (discovered 2 exits: *Mat x2) -9/Materials (discovered 6 exits: *Mat x2 / *Min x2 / *Sto x2) -9/Storage -8/Materials (discovered 3 exits: *Fac x3) -7/Factory (discovered 4 exits: *Fac x2 / *Low x2) -7/Lower Caves -7/Lower Caves (discovered 2 exits: *Fac / *Zio) -7/Zion (discovered 2 exits: *Dee / [*Pro]) -7/Deep Caves -6/Proximity Caves -6/Factory (discovered 6 exits: *Fac x4 / [*Low] / *Ext) -6/Extension (discovered 2 exits: *Fac / *Cet) -6/Cetus (discovered 2 exits: *Fac / *Arc) -6/Archives (discovered 3 exits: *Fac / *Hub x2) -6/Hub_04(d) (discovered 4 exits: *Fac x4) -5/Factory (discovered 2 exits: *Upp x2) -5/Upper Caves (discovered 2 exits: *Upp / *War) -5/Upper Caves (discovered 2 exits: *Fac / *War) -5/Warlord -4/Proximity Caves -4/Factory (discovered 2 exits: *Upp x2) -4/Upper Caves -4/Upper Caves (discovered 2 exits: *Res / *Zhi) -4/Zhirov -3/Proximity Caves -3/Research (discovered 1 exit: *Tes) History --------- Turn | Location | Event 5 | -11/Junkyard | Discovered new exit (range 16) 110 | -11/Junkyard | Entered Materials 318 | -10/Materials | Build established: Mutant 410 | -10/Materials | Discovered new exit (range 7) 974 | -10/Materials | Discovered new exit (range 5) 1076 | -10/Materials | Central database locked down 1197 | -10/Materials | Discovered new exit (range 3) 1244 | -10/Materials | Discovered new exit (range 16) 1971 | -10/Materials | Entered Mines 2154 | -10/Mines | Core integrity fell below 50% 2453 | -10/Mines | Discovered new exit (range 15) 2472 | -10/Mines | Found a damaged Exp. Sensor Array with a note attached 2478 | -10/Mines | Found Prototype Device 2716 | -10/Mines | Discovered new exit (range 4) 3587 | -10/Mines | Learned location of Zion (-7) 4050 | -10/Mines | Entered Materials 4050 | -9/Materials | Accompanied by 2 allies 4050 | -9/Materials | Evolved 2 slots: Propulsion x1, Utility x1 4055 | -9/Materials | Led the pair of lost Derelicts to an unsafe place 4186 | -9/Materials | Discovered new exit (range 4) 4311 | -9/Materials | Identified exit to Mines 4311 | -9/Materials | Identified exit to Storage 4338 | -9/Materials | Build established: Scavenger-Mutant 4499 | -9/Materials | Found Prototype Processor 4659 | -9/Materials | Discovered new exit (range 15) 5702 | -9/Materials | Identified Exp. Targeting Computer 6102 | -9/Materials | Identified Exp. Sensor Array 6287 | -9/Materials | Discovered new exit (range 3) 7153 | -9/Materials | Central database locked down 7172 | -9/Materials | Entered Storage 7504 | -9/Storage | Repaired Broken Exp. Sensor Array 7623 | -9/Storage | Repaired Broken Exp. Targeting Computer 7918 | -9/Storage | Core integrity fell below 50% 8163 | -9/Storage | Discovered new exit (range 5) 8402 | -9/Storage | Met a pair of Derelict thieves 8477 | -9/Storage | Destroyed 7 combat bots 9172 | -9/Storage | First assault squad dispatched 9328 | -9/Storage | Repaired Corrupted Hacking Suite 9504 | -9/Storage | Assisted by bots powering up and referring to "LRC-V3" 9606 | -9/Storage | Entered Materials 9606 | -8/Materials | Accompanied by 12 allies 9606 | -8/Materials | Evolved 2 slots: Propulsion x1, Utility x1 9809 | -8/Materials | Build established: Commander-Mutant 9871 | -8/Materials | Garrison activated, responded to threat 10200 | -8/Materials | Lost 4 parts (1p2n1u) 10219 | -8/Materials | Destroyed 9 combat bots 10298 | -8/Materials | Repaired Imp. Assault Rifle 10337 | -8/Materials | Repaired Hrd. Medium Armor Plating 10390 | -8/Materials | Repaired Imp. Assault Rifle 10411 | -8/Materials | Build established: Scavenger-Mutant 10507 | -8/Materials | Discovered new exit (range 15) 10611 | -8/Materials | Repaired Imp. Assault Rifle 10806 | -8/Materials | First assault squad dispatched 10923 | -8/Materials | Destroyed 7 combat bots 11117 | -8/Materials | Core integrity fell below 50% 11233 | -8/Materials | Discovered new exit (range 16) 11795 | -8/Materials | Discovered new exit (range 16) 12169 | -8/Materials | Sterilization system engaged 12169 | -8/Materials | Non-combat units ordered to evacuate 12269 | -8/Materials | Combat units ordered to evacuate 12469 | -8/Materials | Ambient heat levels rising (+10) 12619 | -8/Materials | Ambient heat levels rising (+10) 12769 | -8/Materials | Ambient heat levels rising (+10) 12791 | -8/Materials | Entered Factory 12791 | -7/Factory | Evolved 2 slots: Power x1, Utility x1 14085 | -7/Factory | Fabricated Lgt. EM Pulse Cannon (x1) 14590 | -7/Factory | Discovered new exit (range 8) 14620 | -7/Factory | Identified exit to Lower Caves 14919 | -7/Factory | Build established: Hacker-Mutant 14986 | -7/Factory | Discovered new exit (range 8) 15228 | -7/Factory | Found Powered Armor 15232 | -7/Factory | Found Powered Armor 15238 | -7/Factory | Found Powered Armor 15324 | -7/Factory | Fabricated EM Pulse Cannon (x1) 16059 | -7/Factory | Entered Lower Caves 16059 | -7/Lower Caves | Accompanied by 1 ally 16126 | -7/Lower Caves | Build established: Mutant 16549 | -7/Lower Caves | Attracted the attention of an 0b10 checkpoint 16825 | -7/Lower Caves | Spotted B-75 Beast 16886 | -7/Lower Caves | Destroyed B-75 Beast 16950 | -7/Lower Caves | Learned Factory terminal intel 17192 | -7/Lower Caves | Build established: Scavenger-Mutant 17701 | -7/Lower Caves | Learned 4 Factory zone layouts 18482 | -7/Lower Caves | Discovered new exit (range 7) 18687 | -7/Lower Caves | Entered another Lower Caves area 18712 | -7/Lower Caves | Discovered new exit (range 6) 19051 | -7/Lower Caves | Learned Factory terminal intel 19278 | -7/Lower Caves | Destroyed 10 combat bots 19788 | -7/Lower Caves | Encountered a Warlord checkpoint 19890 | -7/Lower Caves | Learned Factory terminal intel 20361 | -7/Lower Caves | Discovered new exit (range 11) 20500 | -7/Lower Caves | Entered Zion 20583 | -7/Zion | System corruption cleaned by Quarantine Array 20622 | -7/Zion | Build established: Mutant 20710 | -7/Zion | Discovered new exit (range 15) 20727 | -7/Zion | Given the Hacking Drone Bay 21080 | -7/Zion | Identified exit to Deep Caves 21266 | -7/Zion | Learned location of Data Miner (-6) 21355 | -7/Zion | Received a visual enhancement algorithm 21415 | -7/Zion | Learned Factory emergency access door positions 22101 | -7/Zion | Saw the warning signs outside the Deep Caves entrance 22292 | -7/Zion | Found CR-A16's Pointy Stick 22784 | -7/Zion | Gained Derelict followers 22937 | -7/Zion | Gained Derelict followers 23259 | -7/Zion | Visited the Megawrench Repair Shop 23259 | -7/Zion | Megawrench repaired 10 parts 23414 | -7/Zion | Entered Deep Caves 23414 | -7/Deep Caves | Accompanied by 12 allies 23836 | -7/Deep Caves | Attacked by Z-Imprinter 23847 | -7/Deep Caves | Destroyed Z-Imprinter 23913 | -7/Deep Caves | Found Prototype Protection 23913 | -7/Deep Caves | Identified Zio. Weapon Casing 23946 | -7/Deep Caves | Found Prototype Device 23946 | -7/Deep Caves | Identified Zio. Metafield Generator 24125 | -7/Deep Caves | Z-Facility disabled 24216 | -7/Deep Caves | Found Prototype Protection 24322 | -7/Deep Caves | Build established: Scavenger-Mutant 24336 | -7/Deep Caves | Found Zio. Weapon Casing 24894 | -7/Deep Caves | Discovered new exit (range 7) 25007 | -7/Deep Caves | Identified Zio. Heavy Carapace 25048 | -7/Deep Caves | Spotted as-87722 25060 | -7/Deep Caves | Destroyed as-87722 25087 | -7/Deep Caves | Triggered Deep Caves wall 25090 | -7/Deep Caves | Lost 3 parts (3u) 25092 | -7/Deep Caves | Exposed GOLEM chamber 25125 | -7/Deep Caves | Spotted AS-32446 25130 | -7/Deep Caves | Spotted as-21437 25139 | -7/Deep Caves | Core integrity fell below 50% 25139 | -7/Deep Caves | Destroyed AS-32446 25143 | -7/Deep Caves | Destroyed as-21437 25173 | -7/Deep Caves | Spotted AS-31350 25188 | -7/Deep Caves | Destroyed 47 combat bots 25214 | -7/Deep Caves | Core integrity fell below 20% 25214 | -7/Deep Caves | Destroyed AS-31350 25238 | -7/Deep Caves | Lost 4 parts (2n1u1w) 25269 | -7/Deep Caves | Found GOLEM Unit 25274 | -7/Deep Caves | Found GOLEM Unit 25277 | -7/Deep Caves | Found Prototype Special Weapon 25290 | -7/Deep Caves | Found GOLEM Unit 25427 | -7/Deep Caves | Entered Proximity Caves 25586 | -6/Proximity Caves | Build established: Golem 27029 | -6/Proximity Caves | Spotted B-75 Beast 27085 | -6/Proximity Caves | Attracted the attention of an 0b10 outpost 27161 | -6/Proximity Caves | Destroyed 9 combat bots 27957 | -6/Proximity Caves | Discovered new exit (range 13) 28477 | -6/Proximity Caves | Entered Factory 28477 | -6/Factory | Evolved 2 slots: Utility x2 28480 | -6/Factory | Loaded intel: 28 terminal locations 28529 | -6/Factory | Identified exit to Factory 29185 | -6/Factory | Found Launcher Loader 29300 | -6/Factory | Fabricated Powered Armor (x2) 29972 | -6/Factory | Fabricated Arm. Huge Wheel? 30384 | -6/Factory | Discovered new exit (range 6) 30437 | -6/Factory | Discovered new exit (range 10) 30444 | -6/Factory | Identified Field Lobotomy Kit 30559 | -6/Factory | Spotted B-75 Beast 30899 | -6/Factory | Revealed the true nature of CR-A16's Pointy Stick 30902 | -6/Factory | Destroyed B-75 Beast 31195 | -6/Factory | Fabricated Adv. Terrain Scan Processor (x2) 31429 | -6/Factory | Entered Extension 32367 | -6/Extension | Spotted B-75 Beast 32446 | -6/Extension | Destroyed B-75 Beast 32479 | -6/Extension | Disrupted transfer network 32499 | -6/Extension | Rescued A7 32511 | -6/Extension | Rescued a captive Derelict 32514 | -6/Extension | Rescued a captive Derelict 32567 | -6/Extension | Rescued a captive Derelict 32569 | -6/Extension | Rescued a captive Derelict 32699 | -6/Extension | Spotted B-75 Beast 32710 | -6/Extension | Destroyed B-75 Beast 33098 | -6/Extension | Discovered exit to Factory (range 10) 33100 | -6/Extension | Discovered new exit (range 6) 33226 | -6/Extension | Entered Cetus 33226 | -6/Cetus | Accompanied by 8 allies (A7) 33231 | -6/Cetus | Acquired a Cetus Manufacturing Module code from A7 33237 | -6/Cetus | Build established: Commander-Golem 33270 | -6/Cetus | Spotted Cetus Guard 33270 | -6/Cetus | Spotted Cetus Guard 33275 | -6/Cetus | Spotted Cetus Guard 33276 | -6/Cetus | Spotted Cetus Guard 33278 | -6/Cetus | Allies destroyed Cetus Guard 33283 | -6/Cetus | Allies destroyed Cetus Guard 33291 | -6/Cetus | Allies destroyed Cetus Guard 33292 | -6/Cetus | Allies destroyed Cetus Guard 33352 | -6/Cetus | Extracted ID and sensor layout for unrecognized location from A7's data core 33397 | -6/Cetus | Started Cetus Manufacturing Module 33420 | -6/Cetus | Discovered new exit (range 16) 33422 | -6/Cetus | Manufactured an Enhanced Grunt 33447 | -6/Cetus | Manufactured an Enhanced Grunt 33452 | -6/Cetus | Spotted Cetus Guard 33452 | -6/Cetus | Spotted Cetus Guard 33458 | -6/Cetus | Spotted Cetus Guard 33459 | -6/Cetus | Destroyed Cetus Guard 33459 | -6/Cetus | Spotted Cetus Guard 33471 | -6/Cetus | Destroyed Cetus Guard 33472 | -6/Cetus | Manufactured an Enhanced Grunt 33486 | -6/Cetus | Destroyed Cetus Guard 33494 | -6/Cetus | Allies destroyed Cetus Guard 33497 | -6/Cetus | Manufactured an Enhanced Grunt 33503 | -6/Cetus | Found Prototype Device 33503 | -6/Cetus | Identified Exp. Thermal Shield 33522 | -6/Cetus | Manufactured an Enhanced Grunt 33546 | -6/Cetus | Discovered exit to Factory (range 15) 33556 | -6/Cetus | Met Revision 17 33630 | -6/Cetus | Entered Archives 33630 | -6/Archives | Accompanied by 5 allies 33985 | -6/Archives | Build established: Golem 34028 | -6/Archives | Unable to access archive contents 34032 | -6/Archives | Discovered new exit (range 16) 34057 | -6/Archives | Discovered new exit (range 15) 34081 | -6/Archives | Discovered exit to Factory (range 14) 34404 | -6/Archives | Unable to access archive contents 34404 | -6/Archives | Unable to access archive contents 34421 | -6/Archives | Unable to access archive contents 38031 | -6/Archives | Entered Hub_04(d) 38031 | -6/Hub_04(d) | Accompanied by 2 allies 38113 | -6/Hub_04(d) | Build established: Hacker-Mutant 38555 | -6/Hub_04(d) | Discovered exit to Factory (range 6) 38942 | -6/Hub_04(d) | Garrison activated, responded to threat 39554 | -6/Hub_04(d) | Destroyed 7 combat bots 40621 | -6/Hub_04(d) | Build established: Mutant 40752 | -6/Hub_04(d) | Network Hub disabled 40774 | -6/Hub_04(d) | Spotted Lightning 40775 | -6/Hub_04(d) | Spotted Lightning 40777 | -6/Hub_04(d) | Spotted Lightning 40803 | -6/Hub_04(d) | Core integrity fell below 50% 40804 | -6/Hub_04(d) | Destroyed Lightning 40804 | -6/Hub_04(d) | Destroyed Lightning 40805 | -6/Hub_04(d) | Destroyed Lightning 40831 | -6/Hub_04(d) | Found Prototype Device 40832 | -6/Hub_04(d) | Identified Exp. EM Disruption Field 40837 | -6/Hub_04(d) | Found Prototype Energy Cannon 40840 | -6/Hub_04(d) | Identified EMDS 40889 | -6/Hub_04(d) | Network Hub disabled 40892 | -6/Hub_04(d) | Found Exp. EM Disruption Field 40899 | -6/Hub_04(d) | Found EMDS 40912 | -6/Hub_04(d) | Found Exp. Targeting Computer 41134 | -6/Hub_04(d) | Build established: Scavenger-Mutant 41914 | -6/Hub_04(d) | Network Hub disabled 42037 | -6/Hub_04(d) | Found Exp. Targeting Computer 42071 | -6/Hub_04(d) | Entered Factory 42071 | -5/Factory | Evolved 2 slots: Utility x2 42072 | -5/Factory | Loaded intel: 26 terminal locations 42415 | -5/Factory | Build established: Scavenger-Golem 42851 | -5/Factory | Cargo convoy interrupted 42900 | -5/Factory | Identified exit to Upper Caves 43406 | -5/Factory | Garrison activated, responded to threat 43838 | -5/Factory | Entered Upper Caves 43901 | -5/Upper Caves | Identified exit to Upper Caves 44748 | -5/Upper Caves | Encountered a Warlord checkpoint 44983 | -5/Upper Caves | Attracted the attention of an 0b10 checkpoint 45099 | -5/Upper Caves | Attracted the attention of an 0b10 outpost 45668 | -5/Upper Caves | A Derelict revealed a hidden shortcut to "reach the base" 46277 | -5/Upper Caves | Entered another Upper Caves area 46354 | -5/Upper Caves | Discovered new exit (range 6) 47158 | -5/Upper Caves | Spotted B-75 Beast 47167 | -5/Upper Caves | Destroyed B-75 Beast 47472 | -5/Upper Caves | Encountered a Warlord checkpoint 48009 | -5/Upper Caves | Learned Factory emergency access door positions 48107 | -5/Upper Caves | Discovered new exit (range 8) 48235 | -5/Upper Caves | Found Alien Artifact 48288 | -5/Upper Caves | Attracted the attention of an 0b10 outpost 48365 | -5/Upper Caves | Destroyed 8 combat bots 48799 | -5/Upper Caves | Build established: Golem 49010 | -5/Upper Caves | Entered Warlord 49010 | -5/Warlord | Accompanied by 2 allies 49065 | -5/Warlord | Discovered new exit (range 8) 49811 | -5/Warlord | Build established: Commander-Golem 49892 | -5/Warlord | Visited the Vortex Lab 49899 | -5/Warlord | Warlord's base attacked by MAIN.C 49906 | -5/Warlord | Found Prototype Energy Gun 49906 | -5/Warlord | Identified Vortex Rifle 50120 | -5/Warlord | Met Warlord 50159 | -5/Warlord | Found Prototype Device 50159 | -5/Warlord | Identified Exp. Cloaking Device 50167 | -5/Warlord | Found Prototype Reactor 50167 | -5/Warlord | Identified Vortex Chain Reactor 50176 | -5/Warlord | Found Prototype Device 50176 | -5/Warlord | Identified Thermal Barrier 50180 | -5/Warlord | Found Prototype Processor 50180 | -5/Warlord | Identified Spectral Analyzer 50249 | -5/Warlord | Warlord forces counterattacked 50342 | -5/Warlord | Spotted Striker 50349 | -5/Warlord | Spotted Striker 50428 | -5/Warlord | Entered Proximity Caves 50428 | -4/Proximity Caves | Accompanied by 7 allies 50700 | -4/Proximity Caves | Attracted the attention of an 0b10 outpost 51292 | -4/Proximity Caves | Build established: Golem 51401 | -4/Proximity Caves | Received a Behemoth hack from an annoying Tinkerer 52293 | -4/Proximity Caves | Discovered new exit (range 9) 52334 | -4/Proximity Caves | Attracted the attention of an 0b10 checkpoint 52851 | -4/Proximity Caves | Entered Factory 52851 | -4/Factory | Accompanied by 2 allies 52851 | -4/Factory | Evolved 2 slots: Utility x2 52852 | -4/Factory | Identified exit to Upper Caves 52854 | -4/Factory | Loaded intel: 26 terminal locations 53171 | -4/Factory | Identified Dimensional Node Initializer 53194 | -4/Factory | Found Prototype Hackware 53206 | -4/Factory | Found Quantum Capacitor 53233 | -4/Factory | Identified Exp. Hacking Suite 53319 | -4/Factory | Repaired Broken Quantum Capacitor 53899 | -4/Factory | Spotted B-86 Titan 53921 | -4/Factory | Fabricated Exp. Cloaking Device? 53951 | -4/Factory | Fabricated Quantum Reactor? 54147 | -4/Factory | Fabricated Adv. Heavy Siege Treads? 54248 | -4/Factory | Repaired Centrium Medium Armor Plating? 54609 | -4/Factory | Entered Upper Caves 55386 | -4/Upper Caves | Build established: Mutant 56428 | -4/Upper Caves | Discovered new exit (range 11) 56593 | -4/Upper Caves | Entered another Upper Caves area 57131 | -4/Upper Caves | Discovered new exit (range 16) 57601 | -4/Upper Caves | Attracted the attention of an 0b10 outpost 57717 | -4/Upper Caves | Destroyed 8 combat bots 57980 | -4/Upper Caves | Attracted the attention of an 0b10 checkpoint 58949 | -4/Upper Caves | Discovered new exit (range 8) 59047 | -4/Upper Caves | Entered Zhirov 59048 | -4/Zhirov | Discovered new exit (range 3) 59086 | -4/Zhirov | Met Zhirov 59125 | -4/Zhirov | Learned location of Testing (-3) 59125 | -4/Zhirov | Learned location of Command (-1) 59141 | -4/Zhirov | Zhirov requested help retrieving the SGEMP Prototype 59170 | -4/Zhirov | Found Alien Artifact 59170 | -4/Zhirov | Identified Integrated Dissipator 59170 | -4/Zhirov | Installed Integrated Dissipator, increased core heat dissipation (+20) 59192 | -4/Zhirov | Found Alien Artifact 59569 | -4/Zhirov | Entered Proximity Caves 59785 | -3/Proximity Caves | Encountered a Derelict sapper outpost 59946 | -3/Proximity Caves | Attracted the attention of an 0b10 checkpoint 59985 | -3/Proximity Caves | Destroyed 7 combat bots 60197 | -3/Proximity Caves | Build established: Golem 60345 | -3/Proximity Caves | Attracted the attention of an 0b10 outpost 61119 | -3/Proximity Caves | Discovered new exit (range 7) 61281 | -3/Proximity Caves | Entered Research 61281 | -3/Research | Evolved 2 slots: Power x1, Utility x1 61282 | -3/Research | Identified exit to Testing 61467 | -3/Research | Found Gamma Bomb Array 61523 | -3/Research | Revision forces began assault on 0b10 61532 | -3/Research | Met up with Revision 17++ 61734 | -3/Research | Build established: Mutant 62023 | -3/Research | Research terminal network offline 62434 | -3/Research | Found Prototype Launcher 62434 | -3/Research | Identified Adv. Micro-nuke Launcher 62832 | -3/Research | Found Quantum Capacitor 63013 | -3/Research | Build established: Skirmisher 63213 | -3/Research | Found Unknown Launcher 63213 | -3/Research | Identified Fusion Bomb Launcher 63373 | -3/Research | Spotted B-86 Titan 63447 | -3/Research | Spotted Striker 63447 | -3/Research | Spotted Striker 63447 | -3/Research | Spotted Striker 63453 | -3/Research | Destroyed Striker 63463 | -3/Research | Destroyed Striker 63487 | -3/Research | Destroyed Striker 63512 | -3/Research | Lost 3 parts (1p1n1u) 63530 | -3/Research | Spotted Striker 63536 | -3/Research | Spotted Striker 63585 | -3/Research | Destroyed Striker 63591 | -3/Research | Core integrity fell below 50% 63609 | -3/Research | Self-destructed Last Messages --------------- 63575_ Acquired 73 matter. 63578_ Acquired 96 matter. 63580_ Adv. Heavy Siege Treads destroyed. 63580_ Destroyed Adv. Heavy Siege Treads. 63580_ Tiamat Missile Launcher destroyed. 63580_ Destroyed Tiamat Missile Launcher. 63581_ Critical hit (Impale). 63582_ The unstable cave ceiling collapses. 63585_ Striker destroyed. 63588_ The unstable cave ceiling collapses. 63590_ Thermoblaster destroyed. 63593_ The unstable cave ceiling collapses. 63597_ Critical hit (Impale). 63598_ The unstable cave ceiling collapses. 63604_ Asb. Alloy Leg integration complete. 63604_ The unstable cave ceiling collapses. 63605_ GOLEM Unit beginning Asb. Flux Generator integration. 63606_ Asb. Combat Suite destroyed. 63606_ GOLEM Unit destroyed. 63607_ The unstable cave ceiling collapses. Map ----- +----------------------------------------------------+ | #?####? "?" #?############################# | | ?###?# S"? ############################### | | ??####? "?" ############################### | | ###### ? """ ####?##########################/#### | | ?##?##? ######?######## ###### | | ""? # ############### ###### | | ""#? #####+################## !!! ###### | | + !!! # / | | ?? # ! !! # # | | ? + # # | | ? # ] + # | | ? #### ####### # # | | " !!! " ####### # # | | ? !!! " "" # #####"#;###### ###/#### | | ? !!!"%"% # | | ? " %= % # | | ? ? % # | | ? % != # | | ?##+##"##""#"; # = #!## ########+###### # | | ?##? " " %# ! * ### ## # | | # #% "" %=% # # ## # | | ?# # "" # * # #""" ## | | # # # % # #""" ## | | ? #? # ; #""" ## | | ??? ? ?# # = # # ## | | ??# ? #= ### #K@ ### ####### | | ???? ? ?# / [ =#%[! ! ### ###### | | ??? ?############ ![% ### ###### | | ???? ? ??### ######### % % ################### | | ???? ? ##??########## ### #################### | | ??# ?##?###?########?####################### | | ??#?? ? #??/#?################################## | | ?????#??#???? ? ############################## | | ??????????#??? ?? ?##########?####?############# | | ??????? ??? ?? ??#######?#?##?############### | | ???????? ?? ? ###??###?#?####?############### | | ?????????? ? ? ? ##?###?###?####?########## ? | | ???????? ? ? ?? ??##?##??##??#??###?#?##### | | ??????????#? ? ?######??###########?##### ? | | ??????????? ? ??#?##?#?###?###?##?#?###?# | | ??????????????? ? ?##??#?#?????##?###??###### ? | | ???????????????????#?????????#????????????######## | | ????????????????????????##??????????#???###??##### | | ????????????????????#??????????????????????? ??# | | ?????????????????????????????????????????# ?? + | | ????????????????????????????????????????????? ?? # | | ?????????????????????????????????????????????#???# | | ????????????????????????????????????????????????## | | ?????????????????????????????????????????????????? | | ?????????????????????????????????????????????????? | +----------------------------------------------------+ Best States ------------- Heat Dissipation 111 Energy Generation 75 Energy Capacity 2200 Matter Stores 300 Matter Capacity 300 Sight Range 16 Robot Scan Range 20 Terrain Scan Range 24 Terrain Scan Density 210 Jamming Range 16 Cloak Strength 4 Additional Mass Support 20 Armor Coverage 1600 Resistance: KI 30 Resistance: TH 15 Resistance: EX 15 Resistance: EM 75 Resistance: I 15 Resistance: S 15 Resistance: P 15 Phase Shifting 8 Evasion (%) 50 Targeting Accuracy 20 Core Analysis 8 Recoil Reduction 4 Particle Charging 30 Offensive Hacking 20 Defensive Hacking 12 Authchip Count 1 Trap Extractor Capacity 6 Item Schematics ----------------- Huge Storage Unit | -9/Materials | Hacked Exp. Targeting Computer | -9/Materials | Scanalyzed Sml. Matter Pod | -9/Materials | Extracted Exp. Sensor Array | -9/Materials | Scanalyzed Rocket Launcher | -9/Materials | Scanalyzed Rnf. Fission Core | -9/Materials | Scanalyzed Med. Armor Plating | -9/Materials | Scanalyzed Adv. Terrain Scan Processor | -9/Storage | Hacked Lgt. EM Pulse Cannon | -9/Storage | Hacked Lrn. Tractor Beam | -8/Materials | Hacked EM Pulse Cannon | -8/Materials | Scanalyzed Lrg. Storage Unit | -8/Materials | Extracted Cesium-ion Thruster | -8/Materials | Extracted Hrd. Medium Armor Plating | -8/Materials | Scanalyzed Plasma Cutter | -8/Materials | Extracted ECM Suite | -8/Materials | Extracted Lgt. Ion Engine | -8/Materials | Extracted Imp. Weapon Shielding | -8/Materials | Extracted Battle Rifle | -7/Zion | Free Battle Cannon | -7/Zion | Free Ripper | -7/Zion | Free Arm. Leg | -7/Zion | Archive Mak. Leg | -7/Zion | Archive Recoil Nullifier | -7/Zion | Archive Focal Shield | -7/Zion | Archive Imp. Deuterium Engine | -7/Zion | Archive Energy Well | -7/Zion | Archive Coolant Injector | -7/Zion | Archive Power Amplifier | -7/Zion | Archive Dynamic Insulation System | -7/Zion | Archive Adv. Shield Generator | -7/Zion | Archive Hpw. Shock Rifle | -7/Zion | Archive Proton Missile Launcher | -7/Zion | Archive Armor Integrity Analyzer | -7/Zion | Archive Hvy. Plasma Cannon | -7/Zion | Archive Powered Armor | -6/Factory | Scanalyzed Adv. Signal Interpreter | -6/Factory | Scanalyzed Arm. Huge Wheel | -6/Factory | Scanalyzed Launcher Loader | -6/Factory | Scanalyzed Hvy. Siege Treads | -6/Extension | Hacked Centrium Medium Armor Plating | -5/Factory | Scanalyzed Adv. Energy Well | -5/Factory | Scanalyzed Exp. EM Disruption Field | -5/Factory | Scanalyzed Adv. Terrain Scanner | -5/Factory | Scanalyzed Imp. Cooling System | -5/Factory | Scanalyzed Enh. Biometal Leg | -5/Factory | Scanalyzed Imp. System Restoration Module | -5/Factory | Scanalyzed Adv. Reaction Control System | -5/Factory | Hacked Adv. Transmission Jammer | -4/Factory | Scanalyzed Exp. Cloaking Device | -4/Factory | Scanalyzed Imp. Shield Generator | -4/Factory | Scanalyzed Imp. Plasma Cutter | -4/Factory | Scanalyzed Exp. Hacking Suite | -4/Factory | Scanalyzed Quantum Capacitor | -4/Factory | Scanalyzed Assault Drone Bay | -4/Zhirov | Free Exp. Heat Sink | -4/Zhirov | Free Exp. Optical Array | -4/Zhirov | Free Imp. Arc Thrower | -4/Zhirov | Free Mak. Ablative Armor | -3/Research | Scanalyzed Adv. Heavy Siege Treads | -3/Research | Scanalyzed Robot Schematics ------------------ T-07 Excavator | -9/Storage | Hacked H-77 Assassin | -7/Zion | Archive Fabricated ------------ Lgt. EM Pulse Cannon | x1 | -7/Factory EM Pulse Cannon | x1 | -7/Factory Powered Armor | x2 | -6/Factory Arm. Huge Wheel | x2 | -6/Factory | Authchip Adv. Terrain Scan Processor | x2 | -6/Factory Exp. Cloaking Device | x1 | -4/Factory Quantum Reactor | x2 | -4/Factory | Preloaded Adv. Heavy Siege Treads | x2 | -4/Factory | Preloaded Alien Tech Used ----------------- Integrated Dissipator Achievements -------------- None Challenges ------------ None Game ------ Seed HeavyRemoteSteel Manual? 0 Play Time 09:07:41 Cumulative 258.2 hours Start 2023.03.24 @ 20:17:31 End 2023.04.02 @ 00:27:52 Sessions 14 Manual Loads 0 Difficulty Rogue Special Mode None Game No. 144 Rogue 144 Adventurer 0 Explorer 0 Win Type - Total 12 Types 7/0/2/2/0/0/1/0/0 Lore% 78 Gallery% 82 Achievement% 76 Wizard Run 0 Options --------- ASCII 0 Keyboard 1 Movement Arrows Keybinds 0 Fullscreen 2 Font 18/X11 Map View 76x50 Tactical HUD 1 Map Filters NONE Filters NONE Steam 1 RUN: d3d4dc88-51a2-47ff-9744-2c92f29e9f15